bitfinex/quotes_SOLUSD_20251226
["timestamp","ask_amount","ask_price","bid_price","bid_amount"]
[1766762645126,0.67,121.47,121.43,15.02]
[1766762645323,0.67,121.47,121.44,6.53437499]
[1766762645847,0.67,121.47,121.43,21.55437499]
[1766762646034,0.67,121.47,121.43,15.02]
[1766762646242,0.67,121.47,121.43,21.55437499]
[1766762647842,0.67,121.47,121.44,6.53437499]
[1766762648037,0.2,121.48,121.45,6.53437499]
[1766762648349,0.2,121.48,121.46,6.53437499]
[1766762648729,0.2,121.48,121.46,21.55437499]
[1766762649256,0.77,121.5,121.47,6.53437499]
[1766762649754,0.77,121.5,121.46,23.25300397]
[1766762650050,0.1,121.5,121.46,23.25300397]
[1766762650356,0.1,121.5,121.46,15.02]
[1766762650539,0.1,121.5,121.47,6.53437499]
[1766762650732,0.77,121.5,121.47,6.53437499]
[1766762651050,0.77,121.5,121.46,23.25300477]
[1766762651257,0.77,121.5,121.46,29.78737976]
[1766762651555,0.77,121.5,121.46,23.25300477]
[1766762651737,6.63437499,121.5,121.45,6.53437499]
[1766762651948,0.67,121.49,121.45,21.55437499]
[1766762652557,6.53437499,121.47,121.42,15.02]
[1766762652740,0.1,121.5,121.44,6.53437499]
[1766762652945,0.67,121.47,121.42,6.53437499]
[1766762653135,0.67,121.49,121.46,6.53437499]
[1766762653532,0.67,121.49,121.45,6.53437499]
[1766762653844,0.67,121.49,121.44,23.25429927]
[1766762654049,0.67,121.49,121.45,6.53437499]
[1766762656239,0.67,121.49,121.44,23.25429927]
[1766762656438,0.67,121.49,121.45,6.53437499]
[1766762656753,0.67,121.49,121.46,6.53437499]
[1766762656945,0.67,121.49,121.45,6.53437499]
[1766762657142,0.67,121.49,121.46,6.53437499]
[1766762657543,0.1,121.52,121.48,6.53437499]
[1766762657759,0.1,121.52,121.47,15.84324853]
[1766762657760,0.1,121.52,121.49,6.53437499]
[1766762658148,0.77,121.52,121.47,15.84324853]
[1766762658361,6.53437499,121.5,121.41,49.36760223]
[1766762658673,0.67,121.49,121.45,6.53437499]
[1766762659174,0.67,121.49,121.44,6.53437499]
[1766762659175,7.20437499,121.49,121.44,6.53437499]
[1766762659344,6.53437499,121.49,121.43,7.35789471]
[1766762659662,6.53437499,121.49,121.33,0.2]
[1766762659663,6.53437499,121.45,121.4,7.20437499]
[1766762659862,6.53437499,121.45,121.4,6.53437499]
[1766762660064,6.53437499,121.45,121.38,34.36583751]
[1766762660368,6.53437499,121.45,121.4,6.53437499]
[1766762661269,6.53437499,121.44,121.39,8.23761807]
[1766762661461,6.53437499,121.44,121.39,6.53437499]
[1766762661462,7.20437499,121.44,121.39,6.53437499]
[1766762661967,0.67,121.44,121.39,14.77214465]
[1766762662146,0.67,121.44,121.4,6.53437499]
[1766762663967,7.20437499,121.44,121.39,8.23786194]
[1766762664169,0.67,121.44,121.39,6.53437499]
[1766762664370,7.20437499,121.44,121.39,6.53437499]
[1766762664554,0.67,121.44,121.39,6.53437499]
[1766762664758,0.67,121.44,121.4,6.53437499]
[1766762665256,0.67,121.44,121.38,23.92839103]
[1766762665455,0.67,121.44,121.4,6.53437499]
[1766762666245,104.9,121.51,121.44,0.67]
[1766762666473,0.67,121.5,121.46,6.53437499]
[1766762666682,0.77,121.52,121.47,6.53437499]
[1766762666973,0.1,121.52,121.5,6.53437499]
[1766762667339,0.1,121.52,121.49,7.20437499]
[1766762667547,0.1,121.52,121.49,6.53437499]
[1766762667742,0.1,121.52,121.51,6.53437499]
[1766762667941,0.1,121.56,121.5,11.93071822]
[1766762668244,0.67,121.54,121.5,25.45767296]
[1766762668446,0.67,121.54,121.5,31.99204795]
[1766762668748,0.67,121.54,121.5,15.02]
[1766762669250,0.67,121.54,121.5,21.55437499]
[1766762669850,0.67,121.54,121.51,6.53437499]
[1766762670070,0.67,121.54,121.5,15.02]
[1766762670368,0.67,121.54,121.51,6.53437499]
[1766762671075,0.67,121.54,121.49,15.02]
[1766762671246,0.67,121.54,121.5,6.53437499]
[1766762671445,0.67,121.54,121.5,8.23039998]
[1766762671675,0.67,121.54,121.49,23.9208904]
[1766762671995,0.67,121.54,121.5,10.60548996]
[1766762672274,0.67,121.55,121.5,0.82304526]
[1766762672569,0.67,121.55,121.51,10.60548996]
[1766762672781,0.1,121.56,121.54,10.60548996]
[1766762672953,0.67,121.59,121.55,10.60548996]
[1766762673474,0.67,121.59,121.56,10.60548996]
[1766762674370,0.67,121.59,121.57,10.60548996]
[1766762674562,0.67,121.59,121.55,15.02]
[1766762674768,0.67,121.56,121.51,15.02]
[1766762675150,0.67,121.56,121.52,10.60548996]
[1766762675567,0.67,121.54,121.46,0.82331631]
[1766762675772,0.67,121.51,121.47,10.60548996]
[1766762675973,0.67,121.5,121.46,10.60548996]
[1766762676280,0.67,121.5,121.47,10.60548996]
[1766762676478,0.67,121.5,121.45,15.02]
[1766762676671,10.43767296,121.52,121.41,23.25632231]
[1766762676672,0.67,121.47,121.41,23.25632231]
[1766762676997,0.67,121.44,121.4,10.60548996]
[1766762677280,10.60548996,121.45,121.36,8.23943229]
[1766762677281,0.67,121.41,121.36,8.23943229]
[1766762677451,0.67,121.41,121.39,10.60548996]
[1766762677654,0.67,121.43,121.4,10.60548996]
[1766762677882,0.67,121.43,121.38,8.23857722]
[1766762678063,0.67,121.43,121.38,11.31548996]
[1766762678064,10.60548996,121.43,121.38,11.31548996]
[1766762678779,10.43767296,121.45,121.36,10.60548996]
[1766762679083,10.60548996,121.41,121.35,23.9701811]
[1766762679383,10.60548996,121.41,121.36,10.60548996]
[1766762679676,10.60548996,121.41,121.35,26.33548996]
[1766762679677,10.43767296,121.41,121.35,26.33548996]
[1766762679860,10.43767296,121.41,121.35,0.71]
[1766762680054,10.43767296,121.41,121.33,0.2]
[1766762680055,0.67,121.37,121.33,0.2]
[1766762680255,0.67,121.36,121.33,0.2]
[1766762680455,0.67,121.36,121.33,10.80548996]
[1766762680655,0.67,121.4,121.33,0.91]
[1766762680879,11.27548996,121.4,121.35,11.31548996]
[1766762681056,10.43767296,121.41,121.37,10.60548996]
[1766762681252,8.23267297,121.47,121.38,10.60548996]
[1766762681450,8.23267297,121.47,121.39,0.71]
[1766762681451,11.27548996,121.44,121.39,0.71]
[1766762681673,11.27548996,121.44,121.39,11.31548996]
[1766762682076,11.27548996,121.44,121.39,10.60548996]
[1766762682277,0.67,121.43,121.39,10.60548996]
[1766762683681,0.67,121.43,121.38,0.71]
[1766762683879,11.10767296,121.43,121.39,10.60548996]
[1766762684781,11.10767296,121.43,121.4,10.60548996]
[1766762684978,11.10767296,121.43,121.39,10.60548996]
[1766762685794,11.10767296,121.43,121.4,10.60548996]
[1766762685994,10.60548996,121.45,121.38,15.73]
[1766762685995,11.09767296,121.45,121.39,8.92790376]
[1766762686290,0.66,121.45,121.41,10.60548996]
[1766762686492,0.66,121.44,121.39,8.23790376]
[1766762686792,0.66,121.44,121.4,10.60548996]
[1766762687166,0.66,121.44,121.41,10.60548996]
[1766762687369,0.66,121.44,121.39,8.92790376]
[1766762687696,0.66,121.44,121.41,10.60548996]
[1766762688201,0.66,121.48,121.43,10.60548996]
[1766762688404,0.66,121.48,121.45,10.60548996]
[1766762688604,10.43767296,121.47,121.45,10.60548996]
[1766762689205,0.66,121.48,121.46,10.60548996]
[1766762689404,0.66,121.5,121.46,10.60548996]
[1766762689701,10.43767296,121.49,121.46,10.60548996]
[1766762689875,0.66,121.48,121.45,10.60548996]
[1766762690682,0.66,121.47,121.41,19.36368124]
[1766762690892,0.66,121.47,121.42,10.60548996]
[1766762690893,0.66,121.46,121.42,10.60548996]
[1766762692111,0.66,121.46,121.43,10.60548996]
[1766762693211,0.66,121.46,121.42,10.60548996]
[1766762693411,0.66,121.46,121.41,26.14767296]
[1766762693615,0.66,121.46,121.43,10.60548996]
[1766762693910,0.66,121.46,121.42,10.60548996]
[1766762694291,0.68,121.45,121.41,15.02]
[1766762694496,11.28548996,121.44,121.38,8.91841342]
[1766762694712,0.68,121.44,121.4,10.60548996]
[1766762695098,11.28548996,121.44,121.4,10.60548996]
[1766762695291,0.68,121.42,121.37,8.23920497]
[1766762695490,0.68,121.42,121.39,10.60548996]
[1766762695796,0.68,121.44,121.4,10.60548996]
[1766762696199,11.28548996,121.44,121.39,10.60548996]
[1766762696387,0.68,121.43,121.38,0.68]
[1766762696797,0.68,121.43,121.39,10.60548996]
[1766762698122,11.28548996,121.43,121.38,26.30548996]
[1766762698996,11.28548996,121.43,121.38,23.93854548]
[1766762699196,11.28548996,121.43,121.38,26.30548996]
[1766762700513,10.60548996,121.4,121.35,10.60548996]
[1766762700693,10.60548996,121.4,121.34,0.68]
[1766762700694,11.28548996,121.39,121.34,26.30548996]
[1766762700894,11.28548996,121.39,121.34,11.28548996]
[1766762701094,0.68,121.39,121.34,11.28548996]
[1766762701392,0.68,121.39,121.33,0.2]
[1766762701393,10.60548996,121.35,121.33,0.2]
[1766762701596,11.28548996,121.34,121.31,0.2]
[1766762701804,10.43767296,121.36,121.27,0.88]
[1766762701805,11.28548996,121.32,121.27,0.88]
[1766762702120,0.68,121.34,121.29,10.60548996]
[1766762702319,0.68,121.32,121.28,10.60548996]
[1766762702624,11.28548996,121.3,121.27,0.2]
[1766762703021,0.68,121.27,121.21,0.68]
[1766762703204,11.28548996,121.27,121.21,0.68]
[1766762703403,10.60548996,121.26,121.21,0.68]
[1766762703604,21.72316292,121.26,121.21,10.60548996]
[1766762704224,21.72316292,121.26,121.21,11.28548996]
[1766762704518,11.11767296,121.26,121.21,11.28548996]
[1766762705125,21.72316292,121.26,121.21,0.68]
[1766762705299,21.04316292,121.25,121.21,0.68]
[1766762705497,21.72316292,121.25,121.19,23.27131007]
[1766762705698,10.60548996,121.24,121.16,10.43767296]
[1766762705899,11.28548996,121.24,121.19,10.60548996]
[1766762706124,0.68,121.24,121.19,11.28548996]
[1766762706321,0.68,121.24,121.2,10.60548996]
[1766762706619,11.28548996,121.24,121.19,11.28548996]
[1766762706822,0.68,121.24,121.2,10.60548996]
[1766762707805,0.68,121.28,121.22,10.60548996]
[1766762708129,10.43767296,121.25,121.22,0.68]
[1766762708501,10.43767296,121.25,121.21,10.60548996]
[1766762708701,10.43767296,121.25,121.2,11.28548996]
[1766762708702,21.04316292,121.25,121.2,11.28548996]
[1766762709136,10.43767296,121.25,121.21,10.60548996]
[1766762709425,10.43767296,121.25,121.22,10.60548996]
[1766762709640,10.43767296,121.25,121.21,10.60548996]
[1766762710130,10.43767296,121.25,121.21,11.28548996]
[1766762710517,10.43767296,121.25,121.2,10.60548996]
[1766762710518,0.68,121.24,121.2,10.60548996]
[1766762710702,0.68,121.24,121.19,0.68]
[1766762710907,0.68,121.24,121.13,0.68]
[1766762710908,21.72316292,121.21,121.13,0.68]
[1766762711106,21.72316292,121.21,121.16,10.60548996]
[1766762711439,11.11767296,121.21,121.16,10.60548996]
[1766762711739,11.11767296,121.21,121.17,10.60548996]
[1766762711899,11.11767296,121.21,121.16,10.60548996]
[1766762712097,21.72316292,121.21,121.16,10.60548996]
[1766762712302,21.72316292,121.21,121.15,0.68]
[1766762712600,21.72316292,121.21,121.16,10.60548996]
[1766762713203,21.72316292,121.21,121.15,0.68]
[1766762713409,21.72316292,121.21,121.16,10.60548996]
[1766762713631,11.28548996,121.19,121.14,25.64548996]
[1766762713832,10.43767296,121.2,121.15,10.60548996]
[1766762714041,10.60548996,121.21,121.16,10.60548996]
[1766762714335,11.15767296,121.21,121.17,10.60548996]
[1766762714540,10.43767296,121.21,121.17,10.60548996]
[1766762715724,20.61575047,121.27,121.15,0.68]
[1766762715725,10.60548996,121.2,121.15,10.60548996]
[1766762715926,26.19767296,121.21,121.16,10.60548996]
[1766762716335,36.80316292,121.21,121.16,10.60548996]
[1766762716635,36.80316292,121.21,121.15,0.67]
[1766762716636,10.60548996,121.2,121.15,11.27548996]
[1766762717014,26.19767296,121.21,121.15,11.27548996]
[1766762717211,11.32548996,121.2,121.15,0.67]
[1766762717409,11.32548996,121.2,121.15,11.27548996]
[1766762717609,0.72,121.2,121.15,19.52958803]
[1766762717809,20.61582859,121.27,121.17,11.27548996]
[1766762717810,10.60548996,121.22,121.17,11.27548996]
[1766762718115,11.32548996,121.23,121.17,11.27548996]
[1766762718308,0.72,121.23,121.17,10.60548996]
[1766762718511,10.43767296,121.24,121.2,10.60548996]
[1766762718819,10.43767296,121.24,121.2,11.27548996]
[1766762719350,10.60548996,121.21,121.16,0.67]
[1766762719646,10.60548996,121.21,121.16,11.27548996]
[1766762720238,11.32548996,121.21,121.16,11.27548996]
[1766762720737,0.72,121.21,121.16,19.52897973]
[1766762720951,26.38548996,121.23,121.18,0.67]
[1766762721323,11.32548996,121.21,121.16,11.27548996]
[1766762721518,11.32548996,121.21,121.16,19.5287735]
[1766762721718,0.72,121.21,121.17,10.60548996]
[1766762721918,10.60548996,121.22,121.17,11.27548996]
[1766762721919,11.32548996,121.22,121.17,11.27548996]
[1766762722146,0.72,121.22,121.17,11.27548996]
[1766762722357,11.32548996,121.22,121.17,11.27548996]
[1766762723343,0.72,121.22,121.17,0.67]
[1766762723551,10.60548996,121.21,121.17,0.67]
[1766762723752,11.32548996,121.22,121.17,11.27548996]
[1766762723946,10.60548996,121.21,121.17,0.67]
[1766762724150,11.32548996,121.22,121.17,8.92274595]
[1766762724353,11.32548996,121.22,121.17,19.52823591]
[1766762724718,25.66548996,121.23,121.17,18.85823591]
[1766762724924,15.06,121.23,121.18,0.67]
[1766762725124,10.60548996,121.23,121.18,11.27548996]
[1766762725524,11.15767296,121.24,121.18,11.27548996]
[1766762725833,11.15767296,121.24,121.17,10.60548996]
[1766762725834,0.72,121.23,121.17,10.60548996]
[1766762726034,11.32548996,121.22,121.17,11.27548996]
[1766762726229,0.72,121.22,121.17,19.52815877]
[1766762726435,0.72,121.22,121.18,11.27548996]
[1766762726827,10.43767296,121.24,121.18,11.27548996]
[1766762726828,21.76316292,121.24,121.18,11.27548996]
[1766762727246,10.60548996,121.23,121.18,11.27548996]
[1766762727545,10.60548996,121.23,121.17,8.25266881]
[1766762727546,10.60548996,121.19,121.14,0.67]
[1766762727755,11.32548996,121.18,121.13,0.67]
[1766762728648,0.72,121.18,121.13,0.67]
[1766762728851,11.32548996,121.17,121.11,11.47548996]
[1766762729040,0.72,121.17,121.12,10.60548996]
[1766762729354,10.60548996,121.15,121.11,0.87]
[1766762729532,0.72,121.15,121.11,0.2]
[1766762729736,11.32548996,121.15,121.11,0.2]
[1766762731038,0.72,121.15,121.11,0.2]
[1766762731242,11.32548996,121.15,121.11,0.2]
[1766762731951,10.43767296,121.17,121.12,0.67]
[1766762732150,10.43767296,121.16,121.12,6.50880263]
[1766762732936,16.27647559,121.16,121.12,0.67]
[1766762733831,20.62260854,121.23,121.12,5.83880263]
[1766762734031,15.0,121.26,121.14,5.83880263]
[1766762734032,16.99647559,121.19,121.14,5.83880263]
[1766762734330,15.0,121.26,121.13,8.25559316]
[1766762734331,0.72,121.24,121.18,6.50880263]
[1766762734530,15.0,121.3,121.21,0.67]
[1766762734531,0.72,121.3,121.21,0.67]
[1766762734730,5.83880263,121.24,121.21,0.67]
[1766762734954,5.83880263,121.24,121.19,6.50880263]
[1766762735442,6.55880263,121.25,121.2,6.50880263]
[1766762735637,5.83880263,121.24,121.18,15.06]
[1766762735832,5.83880263,121.24,121.19,6.50880263]
[1766762736260,5.83880263,121.24,121.19,0.67]
[1766762736463,5.83880263,121.24,121.19,6.50880263]
[1766762736755,5.83880263,121.28,121.18,23.31181779]
[1766762736756,0.72,121.28,121.21,6.50880263]
[1766762736953,5.83880263,121.26,121.21,0.67]
[1766762737152,5.83880263,121.25,121.21,0.67]
[1766762737348,15.06,121.29,121.18,43.94228486]
[1766762737550,5.83880263,121.28,121.23,6.50880263]
[1766762737736,16.99647559,121.29,121.23,6.50880263]
[1766762738060,5.83880263,121.28,121.23,6.50880263]
[1766762738257,0.72,121.29,121.24,0.67]
[1766762738559,5.83880263,121.27,121.22,6.50880263]
[1766762738946,11.15767296,121.27,121.22,0.67]
[1766762739150,5.83880263,121.26,121.22,0.67]
[1766762739460,16.99647559,121.27,121.22,6.50880263]
[1766762739766,16.27647559,121.26,121.22,0.67]
[1766762740143,10.43767296,121.26,121.22,0.67]
[1766762740450,5.83880263,121.24,121.19,6.50880263]
[1766762740643,5.83880263,121.23,121.17,0.67]
[1766762740954,5.83880263,121.23,121.18,6.50880263]
[1766762741146,6.55880263,121.24,121.19,5.83880263]
[1766762741539,5.83880263,121.23,121.18,6.50880263]
[1766762742044,5.83880263,121.23,121.18,0.67]
[1766762742238,5.83880263,121.22,121.18,0.67]
[1766762742653,5.83880263,121.21,121.16,15.73]
[1766762743047,5.83880263,121.2,121.16,0.67]
[1766762743760,10.43767296,121.21,121.17,6.53880263]
[1766762743966,16.27647559,121.21,121.17,0.7]
[1766762744454,16.27647559,121.21,121.16,5.83880263]
[1766762744650,16.27647559,121.21,121.16,6.52880263]
[1766762745057,5.83880263,121.2,121.14,0.69]
[1766762745366,5.83880263,121.19,121.14,6.52880263]
[1766762745548,15.06,121.25,121.14,6.52880263]
[1766762745549,0.72,121.23,121.15,5.83880263]
[1766762745864,16.99647559,121.2,121.15,6.52880263]
[1766762746164,45.62880263,121.28,121.19,5.83880263]
[1766762746165,5.83880263,121.24,121.19,5.83880263]
[1766762746368,6.55880263,121.24,121.19,6.52880263]
[1766762746665,5.83880263,121.24,121.2,0.69]
[1766762746863,16.27647559,121.25,121.2,6.52880263]
[1766762747083,16.27647559,121.25,121.2,0.69]
[1766762747259,16.27647559,121.25,121.2,6.52880263]
[1766762747461,16.27647559,121.25,121.2,0.69]
[1766762747670,5.83880263,121.25,121.2,6.52880263]
[1766762748250,5.83880263,121.25,121.2,0.69]
[1766762749059,5.83880263,121.25,121.2,6.52880263]
[1766762749375,5.83880263,121.27,121.22,5.83880263]
[1766762749600,5.83880263,121.25,121.2,5.83880263]
[1766762749875,5.83880263,121.24,121.2,0.69]
[1766762750077,5.83880263,121.23,121.17,0.69]
[1766762750251,6.55880263,121.23,121.18,5.83880263]
[1766762750675,6.55880263,121.23,121.18,6.52880263]
[1766762750845,5.83880263,121.22,121.16,15.06]
[1766762751046,5.83880263,121.22,121.15,0.69]
[1766762751047,5.83880263,121.2,121.15,0.69]
[1766762751765,5.83880263,121.2,121.15,6.52880263]
[1766762751970,10.43767296,121.22,121.16,5.83880263]
[1766762752159,10.43767296,121.22,121.18,0.69]
[1766762752346,5.83880263,121.24,121.19,0.69]
[1766762752549,16.27647559,121.24,121.19,0.69]
[1766762752759,5.83880263,121.23,121.19,0.69]
[1766762753449,6.55880263,121.23,121.17,20.89880263]
[1766762753760,5.83880263,121.22,121.18,0.69]
[1766762755261,5.83880263,121.21,121.16,0.69]
[1766762756070,5.83880263,121.19,121.16,0.69]
[1766762756272,5.83880263,121.2,121.16,0.69]
[1766762757769,5.83880263,121.2,121.14,6.52880263]
[1766762757770,5.83880263,121.19,121.14,6.52880263]
[1766762757976,5.83880263,121.18,121.14,0.69]
[1766762758171,0.72,121.2,121.14,0.69]
[1766762758172,0.72,121.19,121.14,0.69]
[1766762758389,5.83880263,121.17,121.14,0.69]
[1766762758580,5.83880263,121.18,121.14,0.69]
[1766762759055,11.15767296,121.19,121.14,0.69]
[1766762759379,5.83880263,121.18,121.14,0.69]
[1766762759582,16.99647559,121.19,121.14,6.52880263]
[1766762759877,5.83880263,121.18,121.14,0.69]
[1766762760584,16.99647559,121.19,121.14,0.69]
[1766762760786,8.25037511,121.21,121.14,0.69]
[1766762760787,5.83880263,121.18,121.14,0.69]
[1766762761078,5.83880263,121.17,121.12,5.83880263]
[1766762761270,5.83880263,121.17,121.13,0.69]
[1766762761486,10.43767296,121.18,121.14,6.52880263]
[1766762761774,16.99647559,121.18,121.14,0.69]
[1766762762401,15.78,121.21,121.15,0.69]
[1766762762568,5.83880263,121.2,121.16,0.69]
[1766762762773,5.83880263,121.19,121.14,0.69]
[1766762762973,23.31015357,121.21,121.14,0.69]
[1766762762974,5.83880263,121.18,121.14,0.69]
[1766762763371,5.83880263,121.2,121.15,0.69]
[1766762763769,6.55880263,121.2,121.15,0.69]
[1766762764074,16.27647559,121.18,121.12,5.83880263]
[1766762764378,16.27647559,121.18,121.13,0.69]
[1766762764886,16.27647559,121.18,121.13,5.83880263]
[1766762765089,16.27647559,121.18,121.14,0.69]
[1766762765679,10.43767296,121.18,121.14,0.69]
[1766762765924,16.27647559,121.18,121.14,0.69]
[1766762766290,5.83880263,121.17,121.14,0.69]
[1766762766594,5.83880263,121.17,121.12,0.69]
[1766762766889,6.55880263,121.17,121.12,0.69]
[1766762768397,0.72,121.17,121.13,0.69]
[1766762768701,6.55880263,121.17,121.13,0.69]
[1766762769915,0.72,121.17,121.13,0.69]
[1766762770415,5.83880263,121.16,121.13,0.69]
[1766762771087,6.55880263,121.16,121.11,0.89]
[1766762771423,5.83880263,121.14,121.11,0.2]
[1766762771623,6.55880263,121.15,121.11,0.2]
[1766762772515,5.83880263,121.14,121.11,0.2]
[1766762773012,5.83880263,121.14,121.11,0.89]
[1766762773215,5.83880263,121.14,121.11,0.2]
[1766762773522,0.72,121.14,121.11,0.2]
[1766762773824,6.55880263,121.14,121.11,0.2]
[1766762774022,15.06,121.17,121.11,0.2]
[1766762774192,0.71,121.16,121.11,6.03880263]
[1766762774389,21.60880263,121.17,121.12,0.66]
[1766762775017,15.77,121.17,121.12,0.66]
[1766762775198,10.43767296,121.18,121.14,0.66]
[1766762775519,0.71,121.19,121.15,0.66]
[1766762775715,0.71,121.19,121.14,5.83880263]
[1766762775909,0.71,121.19,121.15,0.66]
[1766762776099,6.54880263,121.19,121.15,0.66]
[1766762776315,6.54880263,121.19,121.13,6.49880263]
[1766762776509,6.54880263,121.19,121.14,0.66]
[1766762777109,5.83880263,121.18,121.14,0.66]
[1766762777519,0.71,121.18,121.13,0.66]
[1766762777705,6.54880263,121.18,121.13,0.66]
[1766762778109,5.83880263,121.17,121.13,0.66]
[1766762778316,6.54880263,121.17,121.13,0.66]
[1766762778516,11.14767296,121.17,121.13,0.66]
[1766762778715,16.98647559,121.17,121.13,0.66]
[1766762779027,10.43767296,121.17,121.13,0.66]
[1766762780020,6.54880263,121.18,121.13,0.66]
[1766762780608,5.83880263,121.17,121.13,0.66]
[1766762780938,6.54880263,121.18,121.13,0.66]
[1766762781304,5.83880263,121.17,121.13,0.66]
[1766762781722,0.71,121.18,121.13,6.49880263]
[1766762781928,6.54880263,121.18,121.13,6.49880263]
[1766762782312,6.54880263,121.18,121.13,0.66]
[1766762783339,24.9541982,121.23,121.13,0.66]
[1766762783340,0.71,121.21,121.15,0.66]
[1766762783511,21.60880263,121.21,121.16,0.66]
[1766762783835,32.04647559,121.21,121.16,0.66]
[1766762784002,6.54880263,121.2,121.16,0.66]
[1766762784204,5.83880263,121.19,121.13,6.49880263]
[1766762784427,16.98647559,121.18,121.13,6.49880263]
[1766762784603,11.14767296,121.18,121.13,0.66]
[1766762785032,11.14767296,121.18,121.14,0.66]
[1766762785211,16.98647559,121.18,121.14,0.66]
[1766762785734,10.43767296,121.18,121.14,5.83880263]
[1766762785928,23.31038755,121.21,121.15,0.66]
[1766762785929,6.54880263,121.2,121.15,0.66]
[1766762786234,32.04647559,121.21,121.16,0.66]
[1766762786540,29.10215067,121.25,121.18,5.83880263]
[1766762786850,5.83880263,121.22,121.16,5.83880263]
[1766762787007,27.61783224,121.25,121.17,0.66]
[1766762787008,5.83880263,121.2,121.17,0.66]
[1766762787207,16.98647559,121.2,121.15,0.66]
[1766762787408,11.14767296,121.2,121.15,0.66]
[1766762787639,16.98647559,121.2,121.15,0.66]
[1766762787838,10.43767296,121.2,121.17,0.66]
[1766762788141,21.60880263,121.22,121.17,0.66]
[1766762788308,6.54880263,121.22,121.18,0.66]
[1766762788505,0.71,121.22,121.18,0.66]
[1766762788710,31.33647559,121.23,121.18,0.66]
[1766762788911,12.55622475,121.27,121.19,5.83880263]
[1766762789237,12.55622475,121.27,121.17,0.66]
[1766762789238,5.83880263,121.22,121.17,0.66]
[1766762789419,5.83880263,121.21,121.17,0.66]
[1766762790214,0.71,121.23,121.17,0.66]
[1766762790411,10.43767296,121.22,121.17,0.66]
[1766762790611,6.54880263,121.23,121.18,0.66]
[1766762791942,10.18820262,121.23,121.18,0.66]
[1766762792629,9.47820262,121.19,121.14,0.66]
[1766762792818,0.71,121.24,121.18,0.66]
[1766762793023,10.43767296,121.22,121.18,0.66]
[1766762793236,10.43767296,121.22,121.16,8.25306044]
[1766762793237,9.47820262,121.2,121.16,0.66]
[1766762793443,0.71,121.21,121.16,0.66]
[1766762793619,9.47820262,121.2,121.16,0.66]
[1766762793821,9.47820262,121.19,121.16,0.66]
[1766762794222,10.18820262,121.2,121.16,0.66]
[1766762794553,10.18820262,121.19,121.14,0.66]
[1766762794849,0.71,121.19,121.14,0.66]
[1766762795045,15.77,121.21,121.15,9.47820262]
[1766762795254,9.47820262,121.2,121.15,10.13820262]
[1766762795625,9.47820262,121.2,121.15,0.66]
[1766762795825,0.71,121.2,121.15,0.66]
[1766762796127,9.47820262,121.19,121.15,0.66]
[1766762796925,10.18820262,121.19,121.15,0.66]
[1766762797537,0.71,121.19,121.15,0.66]
[1766762797850,10.18820262,121.19,121.15,0.66]
[1766762798229,9.47820262,121.17,121.13,0.66]
[1766762798636,0.71,121.18,121.13,0.66]
[1766762798835,10.18820262,121.18,121.13,0.66]
[1766762799238,25.49767296,121.21,121.13,10.13820262]
[1766762799445,9.47820262,121.18,121.14,0.66]
[1766762800726,10.18820262,121.19,121.14,0.66]
[1766762800940,9.47820262,121.18,121.14,0.66]
[1766762801526,0.71,121.2,121.13,0.6]
[1766762801741,9.47820262,121.17,121.12,9.47820262]
[1766762801944,10.18820262,121.17,121.13,0.6]
[1766762802355,10.18820262,121.17,121.12,8.8561452]
[1766762802654,10.18820262,121.17,121.12,18.33434782]
[1766762802954,0.71,121.17,121.13,0.6]
[1766762803157,9.47820262,121.18,121.13,0.6]
[1766762803350,9.47820262,121.18,121.14,0.6]
[1766762803529,0.71,121.17,121.13,8.25554194]
[1766762804226,10.18820262,121.17,121.12,19.15984278]
[1766762804444,0.71,121.17,121.12,0.6]
[1766762804651,10.18820262,121.17,121.12,0.6]